bitfinex-derivatives/quotes_SOLF0:USTF0_20260220
["timestamp","ask_amount","ask_price","bid_price","bid_amount"]
[1771589247305,8.80479302,83.676,83.632,8.30200503]
[1771589247500,8.26323409,83.679,83.632,8.30200503]
[1771589247707,10.7603,83.678,83.632,8.30200503]
[1771589248297,10.7603,83.678,83.631,10.7662]
[1771589248298,3.65853474,83.68,83.636,8.30200503]
[1771589249405,10.7602,83.679,83.638,10.7654]
[1771589249606,8.80167161,83.689,83.62,3.65853474]
[1771589249909,167.18,83.78,83.44,118.87890397]
[1771589249910,8.26323409,83.698,83.651,8.30200503]
[1771589250110,8.26323409,83.689,83.638,8.30200503]
[1771589251709,3.65853474,83.69,83.642,8.30200503]
[1771589252501,3.65853474,83.69,83.593,189.0954]
[1771589252502,3.65853474,83.68,83.628,8.30200503]
[1771589252700,8.26323409,83.679,83.631,8.30200503]
[1771589253308,3.65853474,83.68,83.643,8.30200503]
[1771589254005,3.65814658,83.68,83.646,10.7643]
[1771589255212,3.65814658,83.68,83.643,8.30200503]
[1771589255405,3.65814658,83.67,83.629,8.30200503]
[1771589255603,11.92138067,83.67,83.629,8.30200503]
[1771589256408,11.92138067,83.67,83.631,10.7663]
[1771589257607,7.97784744,83.669,83.631,10.7663]
[1771589257913,7.97784744,83.659,83.623,10.7673]
[1771589258112,7.97784744,83.659,83.616,8.28743616]
[1771589258318,3.65814658,83.65,83.616,8.28743616]
[1771589259117,3.65814658,83.65,83.617,10.768]
[1771589259807,7.97784744,83.659,83.629,10.7665]
[1771589260415,3.65814658,83.64,83.602,10.77]
[1771589261015,3.65814658,83.64,83.61,10.7691]
[1771589261212,7.97784744,83.649,83.599,8.28743616]
[1771589262812,3.65814658,83.64,83.599,8.28743616]
[1771589263718,3.65814658,83.64,83.61,10.769]
[1771589264611,7.97784744,83.649,83.61,10.769]
[1771589265419,7.97784744,83.649,83.613,10.7686]
[1771589266120,7.97784744,83.649,83.611,8.28743616]
[1771589270125,7.97784744,83.649,83.611,19.05633616]
[1771589271226,7.97784744,83.649,83.611,8.28743616]
[1771589272320,3.65814658,83.64,83.611,8.28743616]
[1771589275525,3.65814658,83.65,83.611,8.28743616]
[1771589276822,3.65814658,83.65,83.614,10.7685]
[1771589277024,3.65814658,83.64,83.591,8.28743616]
[1771589277626,7.97784744,83.639,83.603,8.28743616]
[1771589278829,7.97784744,83.639,83.604,10.7698]
[1771589279129,11.08020536,83.679,83.59,3.65814658]
[1771589279130,3.65814658,83.65,83.605,8.28743616]
[1771589280530,11.08020536,83.685,83.614,8.28743616]
[1771589280531,10.7629,83.658,83.614,8.28743616]
[1771589280726,14.70117909,83.696,83.614,8.28743616]
[1771589280727,3.65814658,83.67,83.614,8.28743616]
[1771589281130,10.7618,83.667,83.622,8.28743616]
[1771589281327,3.65814658,83.67,83.622,8.28743616]
[1771589281829,3.65814658,83.67,83.625,8.28743616]
[1771589282331,11.63599402,83.66,83.601,8.28743616]
[1771589283231,11.63599402,83.66,83.619,8.28743616]
[1771589284333,11.63599402,83.66,83.628,10.7666]
[1771589284528,11.63599402,83.66,83.619,8.28743616]
[1771589284733,8.63309874,83.659,83.619,8.28743616]
[1771589285334,36.21417909,83.708,83.619,8.28743616]
[1771589285335,3.65814658,83.67,83.619,8.28743616]
[1771589286238,3.65814658,83.67,83.632,10.7661]
[1771589287036,3.65814658,83.66,83.623,8.02073886]
[1771589287638,19.27793699,83.669,83.623,8.02073886]
[1771589287829,8.51633699,83.668,83.623,8.02073886]
[1771589288634,8.51633699,83.668,83.624,10.7672]
[1771589289736,8.51633699,83.659,83.617,10.7681]
[1771589290445,8.51633699,83.659,83.624,10.7672]
[1771589293639,3.65814658,83.67,83.627,8.02073886]
[1771589294041,12.43684934,83.68,83.627,8.02073886]
[1771589294238,8.77870276,83.679,83.627,8.02073886]
[1771589294438,8.77870276,83.679,83.631,8.02073886]
[1771589294439,10.7602,83.679,83.631,8.02073886]
[1771589295650,10.7602,83.679,83.632,10.7662]
[1771589295952,10.7602,83.679,83.633,8.02073886]
[1771589296749,8.51633699,83.685,83.642,8.02073886]
[1771589297649,8.51633699,83.685,83.644,10.7646]
[1771589297950,3.65814658,83.68,83.645,8.02073886]
[1771589300355,12.17448357,83.68,83.645,8.02073886]
[1771589300653,8.51633699,83.669,83.634,8.02073886]
[1771589300850,244.92991609,83.702,83.622,8.02073886]
[1771589300851,8.51633699,83.659,83.622,8.02073886]
[1771589302654,8.51633699,83.659,83.631,10.7663]
[1771589303155,3.65814658,83.65,83.601,8.02073886]
[1771589303656,8.51633699,83.649,83.601,8.02073886]
[1771589303853,8.51633699,83.639,83.601,8.02073886]
[1771589304155,8.51633699,83.639,83.581,8.02073886]
[1771589304457,8.51633699,83.639,83.595,10.7709]
[1771589305355,3.65814658,83.63,83.595,10.7709]
[1771589310056,8.51633699,83.639,83.595,10.7709]
[1771589310250,3.65814658,83.63,83.596,8.02073886]
[1771589315854,3.66255558,83.63,83.596,8.02073886]
[1771589317456,3.66255558,83.63,83.597,10.7707]
[1771589317655,8.51633699,83.636,83.596,8.02073886]
[1771589317956,3.66255558,83.63,83.581,8.42306043]
[1771589318151,3.66255558,83.63,83.584,8.42306043]
[1771589318152,8.2467998,83.627,83.584,8.42306043]
[1771589319756,8.2467998,83.627,83.594,10.771]
[1771589319954,8.2467998,83.639,83.595,8.42306043]
[1771589320350,8.2467998,83.638,83.596,19.19386043]
[1771589320747,8.2467998,83.629,83.596,8.42306043]
[1771589320951,8.2467998,83.629,83.581,8.42306043]
[1771589321959,10.7655,83.638,83.591,8.42306043]
[1771589322762,10.7655,83.638,83.595,8.42306043]
[1771589324050,10.766,83.634,83.595,8.42306043]
[1771589326363,10.7669,83.627,83.595,8.42306043]
[1771589326959,10.766,83.634,83.595,8.42306043]
[1771589327159,8.2467998,83.637,83.595,8.42306043]
[1771589327560,10.7658,83.636,83.595,8.42306043]
[1771589328661,10.7658,83.636,83.597,8.42306043]
[1771589330959,19.0129998,83.633,83.597,8.42306043]
[1771589331360,8.2467998,83.633,83.597,8.42306043]
[1771589332162,19.0128998,83.633,83.597,8.42306043]
[1771589332661,8.2467998,83.633,83.597,8.42306043]
[1771589333459,8.2467998,83.652,83.601,8.42306043]
[1771589333667,8.2467998,83.652,83.611,8.42306043]
[1771589334659,8.2467998,83.652,83.613,10.7686]
[1771589334863,8.2467998,83.652,83.614,8.42306043]
[1771589336763,8.777539,83.68,83.561,21.5507]
[1771589336764,8.2467998,83.644,83.606,19.19256043]
[1771589337155,8.2467998,83.644,83.607,8.42306043]
[1771589340765,11.09861899,83.679,83.566,29.03489257]
[1771589340766,8.2467998,83.639,83.581,8.42306043]
[1771589340969,8.2467998,83.629,83.581,8.42306043]
[1771589341763,8.2467998,83.619,83.581,8.42306043]
[1771589344268,14.8069927,83.668,83.581,8.42306043]
[1771589344269,19.0148998,83.618,83.581,8.42306043]
[1771589344669,8.2467998,83.618,83.581,8.42306043]
[1771589344864,3.66255558,83.61,83.569,8.00034529]
[1771589345368,3.66255558,83.62,83.579,8.00034529]
[1771589346071,7.85357085,83.634,83.591,8.00034529]
[1771589346464,11.09861899,83.661,83.566,29.03489257]
[1771589346465,7.85357085,83.645,83.601,8.00034529]
[1771589347758,7.85357085,83.645,83.602,8.17679172]
[1771589349867,11.09861899,83.665,83.566,29.03489257]
[1771589349868,8.66646709,83.627,83.573,8.17679172]
[1771589350262,8.66646709,83.639,83.581,8.17679172]
[1771589351471,19.43176709,83.639,83.597,8.17679172]
[1771589352164,19.43176709,83.639,83.599,8.17679172]
[1771589352369,10.7644,83.646,83.599,8.17679172]
[1771589352668,12.32902267,83.65,83.608,8.17679172]
[1771589352872,14.8069927,83.679,83.608,8.17679172]
[1771589352873,3.66255558,83.66,83.608,8.17679172]
[1771589353068,8.79917427,83.659,83.608,8.17679172]
[1771589353265,3.66255558,83.66,83.608,8.17679172]
[1771589353665,3.66255558,83.66,83.616,8.17679172]
[1771589354063,10.7628,83.659,83.616,8.17679172]
[1771589354372,8.66646709,83.657,83.616,8.17679172]
[1771589354673,14.8069927,83.685,83.6,3.66255558]
[1771589354674,8.66646709,83.649,83.608,10.7693]
[1771589354974,8.66646709,83.649,83.604,8.17679172]
[1771589356777,8.66646709,83.649,83.622,10.7675]
[1771589357071,8.66646709,83.649,83.604,8.17679172]
[1771589358683,8.66646709,83.649,83.615,10.7684]
[1771589362981,8.66646709,83.649,83.621,10.7676]
[1771589363378,8.66646709,83.649,83.557,35.89]
[1771589363379,8.66646709,83.673,83.622,8.17679172]
[1771589363575,8.66646709,83.669,83.622,8.17679172]
[1771589363777,8.79321768,83.668,83.622,8.17679172]
[1771589363980,8.66646709,83.669,83.644,10.7647]
[1771589364181,8.66646709,83.669,83.633,8.17679172]
[1771589365778,8.66646709,83.669,83.637,10.7656]
[1771589365978,8.66646709,83.669,83.62,8.17679172]
[1771589366372,8.66646709,83.669,83.63,10.7664]
[1771589368781,3.66255558,83.66,83.623,10.7674]
[1771589368982,8.66646709,83.659,83.623,10.7674]
[1771589370787,8.66646709,83.659,83.63,10.7665]
[1771589372583,8.66646709,83.659,83.618,10.768]
[1771589373182,8.66646709,83.657,83.618,10.768]
[1771589373984,8.66646709,83.657,83.624,10.7672]
[1771589376389,8.66646709,83.657,83.616,8.17679172]
[1771589377694,8.66646709,83.657,83.618,8.06119772]
[1771589382393,8.66646709,83.657,83.622,8.06119772]
[1771589386402,8.66646709,83.657,83.623,10.7673]
[1771589386903,8.66646709,83.657,83.629,10.7666]
[1771589387395,8.66646709,83.657,83.622,8.06119772]
[1771589389498,8.66646709,83.657,83.624,8.06119772]
[1771589390297,8.06872402,83.669,83.632,10.7662]
[1771589390494,8.06872402,83.669,83.633,8.06119772]
[1771589390698,238.82237537,83.703,83.633,8.06119772]
[1771589390699,11.72908513,83.68,83.633,8.06119772]
[1771589391104,8.06872402,83.68,83.651,10.7638]
[1771589391299,8.06872402,83.68,83.599,21.5409]
[1771589391300,8.06872402,83.689,83.652,8.06119772]
[1771589392807,11.72908513,83.7,83.659,10.7627]
[1771589393007,8.06872402,83.699,83.659,10.7627]
[1771589400212,8.06872402,83.699,83.661,10.7625]
[1771589400810,8.06872402,83.699,83.661,18.82369772]
[1771589401008,238.82237537,83.703,83.67,8.06119772]
[1771589401212,8.06872402,83.711,83.67,8.06119772]
[1771589402110,8.06872402,83.711,83.679,10.7602]
[1771589402909,4.201e-05,83.723,83.682,8.06119772]
[1771589403105,8.06872402,83.735,83.691,8.06119772]
[1771589404715,20.59091733,83.78,83.711,8.09425903]
[1771589404716,8.03525425,83.753,83.711,8.09425903]
[1771589404914,8.03525425,83.753,83.72,11.75462014]
[1771589405112,8.03525425,83.769,83.721,8.09425903]
[1771589405614,8.03525425,83.769,83.73,14.41396111]
[1771589405916,8.03525425,83.769,83.731,8.09425903]
[1771589406314,24.25127844,83.78,83.681,21.5196]
[1771589406315,24.25127844,83.78,83.734,8.09425903]
[1771589406516,8.03525425,83.781,83.74,3.66036111]
[1771589406711,8.03525425,83.781,83.743,10.7519]
[1771589406912,8.03525425,83.781,83.741,8.09425903]
[1771589406913,8.03525425,83.779,83.741,8.09425903]
[1771589407111,8.03525425,83.779,83.73,3.66036111]
[1771589407112,8.03525425,83.779,83.731,8.43504597]
[1771589407508,7.93769328,83.769,83.731,8.43504597]
[1771589407712,7.93769328,83.759,83.72,8.43504597]
[1771589408016,7.93769328,83.759,83.72,12.09540708]
[1771589408221,21.4836,83.823,83.731,8.43504597]
[1771589408222,7.93769328,83.774,83.731,8.43504597]
[1771589409019,7.93769328,83.789,83.741,8.43504597]
[1771589410419,10.7462,83.788,83.741,8.43504597]
[1771589410621,7.93769328,83.787,83.741,8.43504597]
[1771589411212,3.66036111,83.78,83.741,8.43504597]
[1771589411516,11.59805439,83.78,83.741,8.43504597]
[1771589411913,11.59805439,83.77,83.728,8.43504597]
[1771589412214,18.23143499,83.826,83.713,8.43504597]
[1771589412215,3.66036111,83.75,83.713,8.43504597]
[1771589417420,11.59805439,83.75,83.713,8.43504597]
[1771589419820,7.93769328,83.749,83.713,8.43504597]
[1771589420524,7.93769328,83.761,83.72,3.66036111]
[1771589420724,7.93769328,83.761,83.721,8.43504597]
[1771589421023,3.66036111,83.76,83.721,8.43504597]
[1771589421221,7.93769328,83.759,83.721,8.43504597]
[1771589421425,3.66036111,83.77,83.721,8.43504597]
[1771589421621,11.59805439,83.77,83.721,8.43504597]
[1771589422022,7.93769328,83.769,83.721,8.43504597]
[1771589422221,18.68639328,83.769,83.723,8.43504597]
[1771589422525,7.93769328,83.768,83.723,8.43504597]
[1771589422727,3.66036111,83.76,83.723,8.43504597]
[1771589422928,7.93769328,83.757,83.712,8.43504597]
[1771589424723,7.93769328,83.757,83.713,19.19074597]
[1771589426230,7.93769328,83.756,83.713,19.19074597]
[1771589426432,7.93769328,83.749,83.701,8.43504597]
[1771589426625,7.93769328,83.739,83.701,8.43504597]
[1771589427328,3.66036111,83.73,83.701,8.43504597]
[1771589427528,3.66036111,83.72,83.681,8.43504597]
[1771589428230,7.93769328,83.729,83.684,8.43504597]
[1771589429327,18.69149328,83.729,83.686,8.43504597]
[1771589431538,7.93769328,83.729,83.686,8.43504597]
[1771589432027,3.66036111,83.74,83.691,8.43504597]
[1771589432836,10.7525,83.739,83.697,8.43504597]
[1771589433032,7.93769328,83.738,83.697,8.43504597]
[1771589433633,10.7531,83.735,83.697,8.43504597]
[1771589435537,18.69079328,83.735,83.697,8.43504597]
[1771589435734,21.4968,83.771,83.672,29.23846567]
[1771589435735,7.93769328,83.727,83.684,8.43504597]
[1771589435937,3.66036111,83.72,83.684,8.43504597]
[1771589437836,8.05243265,83.725,83.684,8.43504597]
[1771589439537,8.05243265,83.725,83.685,10.7593]
[1771589439736,8.05243265,83.738,83.686,7.8092351]
[1771589440641,8.05243265,83.738,83.7,7.8092351]
[1771589442742,8.05243265,83.738,83.701,18.5664351]
[1771589442937,8.05243265,83.738,83.702,7.8092351]
[1771589445445,8.05243265,83.736,83.694,10.7582]
[1771589446636,10.7532,83.734,83.694,10.7582]
[1771589446947,8.05243265,83.733,83.694,10.7582]
[1771589449247,8.05243265,83.733,83.694,18.5674351]
[1771589451250,18.80583265,83.732,83.694,18.5674351]
[1771589451444,8.05243265,83.731,83.694,7.8092351]
[1771589452646,10.7542,83.726,83.694,7.8092351]
[1771589453349,8.05243265,83.725,83.685,7.8092351]
[1771589453746,8.05243265,83.725,83.687,7.8092351]
[1771589456855,10.7532,83.734,83.692,7.8092351]
[1771589457752,10.7532,83.734,83.694,7.8092351]
[1771589459452,10.7539,83.728,83.694,7.8092351]
[1771589460052,8.05243265,83.739,83.694,7.8092351]
[1771589461659,8.05243265,83.734,83.694,7.8092351]
[1771589462051,8.05243265,83.719,83.681,7.8092351]
[1771589462247,8.05243265,83.71,83.673,7.8092351]
[1771589462456,21.502,83.751,83.673,7.8092351]
[1771589462457,8.05243265,83.721,83.673,7.8092351]
[1771589462654,8.05243265,83.732,83.681,7.8092351]
[1771589462856,8.05243265,83.732,83.687,7.8092351]
[1771589462857,10.7543,83.725,83.687,7.8092351]
[1771589463246,8.05243265,83.732,83.691,10.7586]
[1771589463554,8.05243265,83.732,83.692,7.8092351]
[1771589467852,10.7518,83.745,83.701,8.13445024]
[1771589472663,10.7518,83.745,83.705,8.13445024]
[1771589476768,10.7518,83.745,83.708,8.13445024]
[1771589477168,19.2144962,83.745,83.708,8.13445024]
[1771589477370,14.8069927,83.784,83.672,29.23846567]
[1771589477371,8.4626962,83.729,83.688,8.13445024]
[1771589478466,8.4626962,83.729,83.69,3.65338033]
[1771589478671,8.4626962,83.729,83.696,10.758]
[1771589480064,8.4626962,83.729,83.696,18.89245024]
[1771589480265,8.4626962,83.729,83.699,10.7575]
[1771589480464,8.4626962,83.743,83.701,8.13445024]
[1771589481669,8.4626962,83.743,83.707,8.13445024]
[1771589482368,8.4626962,83.743,83.709,8.13445024]
[1771589484269,8.4626962,83.743,83.679,22.32475268]
[1771589484474,8.4626962,83.729,83.681,8.13445024]
[1771589485370,8.4626962,83.729,83.697,10.7579]
[1771589498082,8.4626962,83.729,83.679,8.55178833]
[1771589498282,7.95147904,83.719,83.681,8.55178833]
[1771589498482,7.95147904,83.732,83.691,8.55178833]
[1771589499684,7.95147904,83.732,83.696,8.55178833]
[1771589500385,7.95147904,83.743,83.701,8.55178833]
[1771589501686,7.95147904,83.743,83.703,8.55178833]
[1771589506293,7.95147904,83.74,83.703,8.55178833]
[1771589508187,7.95147904,83.74,83.704,10.7569]
[1771589509296,7.95147904,83.74,83.703,8.55178833]
[1771589512990,10.7512,83.749,83.705,8.55178833]
[1771589513203,7.95147904,83.754,83.672,29.23846567]
[1771589513204,7.95147904,83.754,83.711,8.55178833]
[1771589513497,7.95147904,83.754,83.691,22.32475268]
[1771589513498,7.95147904,83.749,83.682,22.32475268]
[1771589513691,10.7534,83.732,83.692,10.7584]
[1771589513890,3.653085,83.75,83.692,10.7584]
[1771589513891,7.95147904,83.734,83.692,10.7584]
[1771589514092,7.95147904,83.734,83.69,3.653085]
[1771589515293,7.95147904,83.734,83.691,10.7586]
[1771589515500,7.95147904,83.734,83.692,8.55178833]
[1771589515898,7.95147904,83.734,83.695,8.55178833]
[1771589517698,7.95147904,83.734,83.69,3.653085]
[1771589517699,7.95147904,83.734,83.699,8.55178833]
[1771589518799,7.95147904,83.734,83.703,10.757]
[1771589519399,7.95147904,83.734,83.691,10.7586]
[1771589519605,7.95147904,83.732,83.691,10.7586]
[1771589519901,7.95147904,83.727,83.681,10.7599]
[1771589520102,7.95147904,83.719,83.681,10.7599]
[1771589520299,7.95147904,83.709,83.662,8.55178833]
[1771589520503,7.95147904,83.707,83.662,8.55178833]
[1771589520703,7.95147904,83.705,83.662,8.55178833]
[1771589521705,7.95147904,83.705,83.67,10.7612]
[1771589522101,7.95147904,83.689,83.649,8.55178833]
[1771589523305,22.1414893,83.737,83.604,21.5396]
[1771589523306,3.653085,83.68,83.636,10.7657]
[1771589523501,3.653085,83.68,83.627,8.55178833]
[1771589523502,7.95147904,83.669,83.627,8.55178833]
[1771589523701,7.95147904,83.669,83.61,3.653085]
[1771589523702,7.95147904,83.659,83.612,8.55178833]
[1771589524801,7.95147904,83.659,83.614,18.97065286]
[1771589525001,7.95147904,83.659,83.615,8.20215286]
[1771589525507,11.09861899,83.714,83.582,12.1509965]
[1771589525508,7.97797591,83.673,83.631,8.20215286]
[1771589526002,7.97797591,83.708,83.653,8.20215286]
[1771589526900,7.97797591,83.708,83.66,3.653085]
[1771589527696,8.36500606,83.704,83.66,3.653085]
[1771589528906,8.36500606,83.699,83.66,3.653085]
[1771589530407,8.36500606,83.699,83.653,8.20215286]
[1771589531410,8.36500606,83.695,83.653,8.20215286]
[1771589531612,3.653085,83.71,83.66,12.1889655]
[1771589531613,8.36500606,83.709,83.66,12.1889655]
[1771589531808,8.36500606,83.709,83.65,3.653085]
[1771589532003,8.36500606,83.7,83.65,3.653085]
[1771589533107,8.36500606,83.7,83.65,12.1889655]
[1771589533309,8.36500606,83.699,83.65,12.1889655]
[1771589533504,8.36500606,83.699,83.651,8.5358805]
[1771589534408,8.36500606,83.698,83.651,8.5358805]
[1771589535305,19.12310606,83.696,83.651,8.5358805]
[1771589535512,8.36500606,83.695,83.651,8.5358805]
[1771589536711,10.7588,83.69,83.651,8.5358805]
[1771589538208,10.7598,83.683,83.651,8.5358805]
[1771589539308,8.36500606,83.695,83.651,8.5358805]
[1771589545621,8.36500606,83.695,83.654,8.5358805]
[1771589547022,8.36500606,83.695,83.656,10.7631]
[1771589547211,8.36500606,83.695,83.656,19.2989805]
[1771589547817,8.36500606,83.695,83.657,8.5358805]
[1771589548522,8.36500606,83.695,83.658,10.7628]
[1771589553119,8.36500606,83.695,83.658,19.2986805]
[1771589553520,8.36500606,83.695,83.605,35.89]
[1771589553521,8.36500606,83.717,83.671,8.5358805]
[1771589554726,10.7555,83.716,83.676,8.5358805]
[1771589554928,3.653085,83.73,83.676,8.5358805]
[1771589554929,8.36500606,83.715,83.676,8.5358805]
[1771589555720,8.36500606,83.713,83.676,8.5358805]
[1771589561129,8.36500606,83.713,83.66,3.653085]
[1771589561130,8.36500606,83.713,83.672,8.63067907]
[1771589561326,8.60182537,83.711,83.672,8.63067907]
[1771589564034,10.7563,83.71,83.672,8.63067907]
[1771589566638,10.7553,83.717,83.672,8.63067907]
[1771589567136,8.60182537,83.713,83.672,8.63067907]
[1771589568743,10.7561,83.711,83.672,8.63067907]
[1771589570236,8.60182537,83.713,83.672,8.63067907]
[1771589571538,3.65502597,83.72,83.677,8.63067907]
[1771589571735,8.60182537,83.723,83.677,8.63067907]
[1771589572136,14.8069927,83.753,83.638,21.5309]
[1771589572137,8.60182537,83.736,83.691,8.63067907]
[1771589572739,8.60182537,83.729,83.684,10.7595]
[1771589573145,8.60182537,83.729,83.684,19.39017907]
[1771589573439,8.60182537,83.729,83.687,10.7591]
[1771589574446,8.60182537,83.729,83.641,35.89]
[1771589574447,8.60182537,83.719,83.677,10.7604]
[1771589574638,8.60182537,83.719,83.675,8.63067907]
[1771589575742,8.60182537,83.719,83.683,10.7596]
[1771589580554,8.60182537,83.719,83.683,19.39027907]
[1771589580751,14.8069927,83.761,83.688,8.63067907]
[1771589580752,3.65502597,83.73,83.688,8.63067907]
[1771589581052,8.60182537,83.729,83.688,8.63067907]
[1771589581242,8.60182537,83.728,83.692,10.7584]
[1771589584343,3.65502597,83.73,83.688,8.63067907]
[1771589584344,19.05666402,83.727,83.688,8.63067907]
[1771589584958,8.30266402,83.727,83.69,8.51850572]
[1771589586157,8.30266402,83.726,83.69,8.51850572]
[1771589587753,10.7543,83.725,83.69,8.51850572]
[1771589587954,19.12136644,83.725,83.69,8.51850572]
[1771589591059,8.36706644,83.724,83.69,8.51850572]
[1771589593754,10.7546,83.723,83.69,8.51850572]
[1771589593959,8.36706644,83.722,83.69,8.51850572]
[1771589600965,19.12186644,83.721,83.69,8.51850572]
[1771589601970,3.65502597,83.72,83.68,8.13155904]
[1771589602165,8.36706644,83.722,83.68,8.13155904]
[1771589602560,10.755,83.72,83.68,8.13155904]
[1771589603572,10.755,83.72,83.683,8.13155904]
[1771589604869,10.755,83.72,83.685,8.13155904]
[1771589606367,8.36706644,83.717,83.685,8.13155904]
[1771589610272,8.36706644,83.728,83.688,8.13155904]
[1771589613070,8.36706644,83.728,83.689,10.7588]
[1771589613368,10.7533,83.733,83.668,22.32475268]
[1771589613369,12.02209241,83.74,83.691,8.13155904]
[1771589613676,17.07547113,83.739,83.691,8.13155904]
[1771589613877,8.36706644,83.738,83.691,8.13155904]
[1771589614678,8.36706644,83.738,83.699,10.7575]
[1771589614878,8.36706644,83.738,83.7,8.13155904]
[1771589615270,8.36706644,83.738,83.702,10.7572]
[1771589615676,8.36706644,83.738,83.702,18.88875904]
[1771589616367,8.36706644,83.738,83.702,8.13155904]
[1771589617370,8.36706644,83.738,83.653,29.54886394]
[1771589617371,19.58072998,83.77,83.732,8.21180829]
[1771589617569,19.58072998,83.77,83.721,8.21180829]
[1771589617570,1.60372998,83.77,83.721,8.21180829]
[1771589617772,3.65502597,83.76,83.703,8.21180829]
[1771589617976,3.65502597,83.76,83.714,8.21180829]
[1771589619074,3.65502597,83.76,83.725,10.7541]
[1771589619374,3.65502597,83.77,83.726,8.21180829]
[1771589619574,8.48211099,83.759,83.711,8.21180829]
[1771589620669,8.48211099,83.758,83.711,8.21180829]
[1771589620880,8.48211099,83.749,83.711,8.21180829]
[1771589621880,8.48211099,83.749,83.713,8.21180829]
[1771589622676,8.48211099,83.749,83.716,10.7553]
[1771589622874,8.48211099,83.759,83.717,8.21180829]
[1771589623780,8.48211099,83.759,83.721,8.21180829]
[1771589625180,8.48211099,83.759,83.728,8.21180829]
[1771589625877,245.62644447,83.781,83.72,3.65164444]
[1771589626182,3.65164444,83.77,83.721,8.21180829]
[1771589627183,3.65164444,83.77,83.729,10.7536]
[1771589627983,8.48211099,83.769,83.729,10.7536]
[1771589630778,8.48211099,83.759,83.711,8.21180829]
[1771589631176,8.48211099,83.759,83.673,35.87]
[1771589631177,8.48211099,83.789,83.741,8.21180829]
[1771589631472,8.48211099,83.779,83.741,8.21180829]
[1771589632681,8.48211099,83.779,83.743,8.21180829]
[1771589633775,8.48211099,83.779,83.744,10.7518]
[1771589635185,8.48211099,83.769,83.735,8.21180829]
[1771589636685,8.48211099,83.769,83.736,10.7528]
[1771589636886,8.48211099,83.779,83.737,8.21180829]
[1771589637887,3.65164444,83.79,83.741,8.21180829]
[1771589638084,3.65164444,83.8,83.751,8.21180829]
[1771589638590,12.13375543,83.8,83.751,8.21180829]
[1771589639485,8.48211099,83.799,83.756,8.21180829]
[1771589640087,8.48211099,83.799,83.766,10.7489]
[1771589640286,3.65164444,83.79,83.756,8.21180829]
[1771589640682,8.48211099,83.789,83.756,8.21180829]
[1771589641195,8.48211099,83.789,83.75,10.751]
[1771589642888,8.48211099,83.789,83.753,8.21180829]
[1771589643094,16.15379204,83.826,83.753,8.21180829]
[1771589643095,3.65164444,83.8,83.753,8.21180829]
[1771589643483,12.13375543,83.8,83.753,8.21180829]
[1771589643990,10.7448,83.799,83.756,8.21180829]
[1771589644290,3.65164444,83.79,83.756,8.21180829]
[1771589645590,8.48211099,83.798,83.756,8.21180829]
[1771589646187,12.1162404,83.8,83.765,10.7491]
[1771589646584,12.1162404,83.8,83.765,19.60466092]
[1771589647089,12.1162404,83.8,83.766,8.69515685]
[1771589648789,3.65164444,83.8,83.766,8.69515685]
[1771589648993,8.44279619,83.799,83.766,8.69515685]
[1771589650687,10.7449,83.798,83.766,8.69515685]
[1771589651095,3.65164444,83.81,83.766,8.69515685]
[1771589651687,10.7431,83.813,83.767,10.7488]
[1771589651888,10.7431,83.813,83.768,8.69515685]
[1771589652094,8.44279619,83.816,83.768,8.69515685]
[1771589653000,8.44279619,83.816,83.771,8.69515685]
[1771589653496,16.15379204,83.826,83.77,3.65164444]
[1771589653497,16.15379204,83.826,83.789,8.69515685]
[1771589654001,24.59658823,83.826,83.789,8.69515685]
[1771589654898,3.65164444,83.85,83.804,8.69515685]
[1771589655098,8.44279619,83.849,83.804,8.69515685]
[1771589655399,3.65164444,83.84,83.804,8.69515685]
[1771589655601,8.44279619,83.849,83.805,10.744]
[1771589655797,8.44279619,83.849,83.806,8.69515685]
[1771589656799,3.65164444,83.83,83.793,8.69515685]
[1771589657204,3.65164444,83.83,83.78,3.65164444]
[1771589657205,8.44279619,83.839,83.781,8.69515685]
[1771589657905,8.44279619,83.839,83.794,10.7453]
[1771589658106,3.65164444,83.83,83.794,10.7453]
[1771589660002,3.65164444,83.84,83.795,8.69515685]
[1771589660209,8.44279619,83.848,83.806,8.69515685]
[1771589660406,8.44279619,83.848,83.811,8.69515685]
[1771589661207,3.65164444,83.86,83.815,8.69515685]
[1771589661208,12.09444063,83.86,83.815,8.69515685]
[1771589661509,8.44279619,83.859,83.815,8.69515685]
[1771589662009,8.44279619,83.849,83.803,8.69515685]
[1771589663810,8.44279619,83.862,83.811,8.69515685]
[1771589664405,8.44279619,83.862,83.824,8.69515685]
[1771589664605,8.44279619,83.879,83.824,8.69515685]
[1771589664807,8.44279619,83.869,83.824,8.69515685]
[1771589665607,3.65164444,83.87,83.824,8.69515685]
[1771589665608,8.44279619,83.867,83.824,8.69515685]
[1771589666907,19.17939619,83.863,83.824,8.69515685]
[1771589667106,8.44279619,83.849,83.8,12.34680129]